[Event "Stare Mesto Open-A 2022"]
[Site "Stare Mesto"]
[Date "2022.08.15"]
[Round "4.5"]
[White "Skalsky, Alexandr"]
[Black "Vodak, Rostislav"]
[Result "1-0"]
[ECO "C00"]
[WhiteElo "2187"]
[BlackElo "2004"]
[Annotator "TA"]
[PlyCount "119"]
[EventDate "2022.08.12"]
[EventType "swiss"]
[EventCountry "CZE"]
[SourceTitle "playchess.com"]
[Source "ChessBase"]
[SourceQuality "1"]
[TimeControl "40/5400+30:1800+30"]

{[%evp 10,119,-12,-22,-24,-23,0,0,-7,-22,0,0,23,0,0,-27,26,12,36,24,99,111,97,93,92,106,103,90,104,93,95,77,122,118,127,0,0,8,10,0,0,0,0,0,0,0,0,0,68,68,68,61,85,83,87,85,81,85,104,95,105,74,79,71,73,78,107,78,108,0,110,0,110,108,104,88,106,106,146,146,134,144,150,142,146,143,179,150,297,294,450,452,470,467,460,454,653,589,677,407,3143,3041,2329,1912,6737,6664,29967,12678,29975,29974,29982,29983]} 1. e4 {[%emt 0:00:30]} e6 {[%emt 0:05:39]} 2. b3 {[%emt 0:00:00]} d5 {[%emt 0:00:10]} 3. Bb2 {[%emt 0:00:53]} dxe4 {[%emt 0:00:00]} 4. Nc3 {[%emt 0:00:07]} Nf6 {[%emt 0:00:00]} 5. g4 {[%emt 0:01:42]} h6 {[%emt 0:00:00]} 6. Bg2 {[%emt 0:00:49]} Be7 {[%emt 0:00:00] C00: French: Unusual White 2nd moves.} 7. Nxe4 {[%emt 0:10:07]} Nxe4 {[%emt 0:00:00]} 8. Bxe4 {[%emt 0:00:01]} Bf6 {[%emt 0:00:01] The position is equal.} 9. c3 {[%emt 0:00:13]} c5 {[%emt 0:01:59][%cal Oh6h5]} 10. Qe2 {[%emt 0:11:42] [#]} Qb6 $146 {[%emt 0:01:43]} ({Predecessor:} 10... Qc7 11. Nf3 Bd7 12. d4 cxd4 13. Nxd4 a6 14. O-O-O Nc6 15. Nf5 Be5 16. Bxc6 Bxc6 {0-1 (63) Ivanov,A (2324)-Akvist,H (2281) Barlinek 2002}) 11. h4 {[%emt 0:06:45][%cal Bh2h4,Bh4g5][%mdl 32]} Bd7 {[%emt 0:04:01]} 12. Rh3 {[%emt 0:04:11]} Bb5 {[%emt 0:11:59]} (12... Nc6 $142) 13. Qe3 $11 {[%emt 0:05:46]} Bc6 {[%emt 0:02:37]} 14. g5 {[%emt 0:03:20]} hxg5 {[%emt 0:00:05]} (14... Be7 $11) 15. hxg5 $16 {[%emt 0:00:06]} Rxh3 {[%emt 0:00:13]} 16. Nxh3 {[%emt 0:01:39]} Be7 {[%emt 0:00:12] [#]} 17. g6 $1 {[%emt 0:04:29]} Bxe4 {[%emt 0:01:10]} 18. gxf7+ {[%emt 0:00:26]} ({Much worse is} 18. Qxe4 f5 19. Qf4 Qd6 $11) 18... Kxf7 {[%emt 0:00:09]} 19. Qxe4 {[%emt 0:00:08]} Qc6 {[%emt 0:00:49]} 20. Qg4 {[%emt 0:18:09] aiming for c4. White is more active.} Nd7 {[%emt 0:08:37]} 21. c4 {[%emt 0:00:05]} Bf6 {[%emt 0:04:24] [#]} 22. Qh5+ {[%emt 0:03:56]} ({White should try} 22. O-O-O $1 $16) 22... Ke7 $11 {[%emt 0:00:48]} 23. O-O-O {[%emt 0:00:14] Threatens to win with Bxf6+.} Qe4 $1 {[%emt 0:05:16]} 24. Rg1 {[%emt 0:05:19]} Ne5 {[%emt 0:02:57] Against f3} 25. Bxe5 {[%emt 0:12:23] Dancing on a razor blade.} Qxe5 {[%emt 0:01:54]} 26. Qxe5 {[%emt 0:00:06]} Bxe5 {[%emt 0:00:04][%mdl 4096] Endgame KRB-KRN} 27. Re1 {[%emt 0:00:26][%cal Bg1e1,Be1e6,Be6g6,Bg6g7][%mdl 32]} Bd4 {[%emt 0:05:50]} 28. Ng5 {[%emt 0:00:43]} Bxf2 {[%emt 0:02:22]} (28... Kf6 $11 29. f4 Re8) 29. Rxe6+ $14 {[%emt 0:04:28]} Kd7 {[%emt 0:09:31]} 30. Rg6 $1 {[%emt 0:00:50]} Re8 {[%emt 0:04:07]} 31. Rxg7+ {[%emt 0:00:05]} Kc6 {[%emt 0:00:13]} 32. Rg6+ {[%emt 0:00:58]} Kd7 {[%emt 0:00:16]} 33. Nf3 {[%emt 0:01:34]} Re4 {[%emt 0:01:31]} 34. Rg5 {[%emt 0:02:28]} Kc7 {[%emt 0:03:57]} 35. Rd5 {[%emt 0:02:27]} b6 {[%emt 0:01:27]} 36. Kc2 {[%emt 0:00:33]} Rf4 {[%emt 0:01:20]} 37. Ng5 {[%emt 0:00:16] And now Ne6+ would win.} Rf6 {[%emt 0:01:42] Against Ne6+} 38. Re5 {[%emt 0:00:49]} Kd7 {[%emt 0:02:49]} 39. Rd5+ {[%emt 0:00:39]} Kc7 $1 {[%emt 0:00:15]} 40. Re5 {[%emt 0:00:31]} Kd7 $1 {[%emt 0:00:05]} 41. Ne4 {[%emt 0:02:56] White leaves nothing to chance now.} Rf7 {[%emt 0:01:05]} 42. Rd5+ {[%emt 0:00:23]} Kc7 {[%emt 0:01:39]} 43. a3 {[%emt 0:06:42][%cal Ba2a3,Ba3b4][%mdl 32]} Bh4 {[%emt 0:09:34]} 44. b4 {[%emt 0:04:11]} cxb4 {[%emt 0:00:05]} 45. axb4 {[%emt 0:00:01]} Be7 {[%emt 0:00:27]} 46. Kb3 {[%emt 0:00:23]} Rf3+ {[%emt 0:01:08]} 47. d3 {[%emt 0:00:06]} Rf1 {[%emt 0:00:32]} 48. Nc3 {[%emt 0:02:37] Prevents Rb1+.} a6 {[%emt 0:02:18] Against Nb5+} (48... Bf6 $16 49. Rh5 Kb8) 49. Rh5 $18 {[%emt 0:01:22]} Rf7 {[%emt 0:03:03]} (49... Bf8 {was called for.} 50. Rh7+ Kc6) 50. Rh6 {[%emt 0:02:08]} Kb7 {[%emt 0:01:18]} 51. Nd5 {[%emt 0:03:56]} Bd8 {[%emt 0:00:06]} 52. c5 {[%emt 0:02:11]} b5 {[%emt 0:02:16]} (52... bxc5 $142 53. bxc5 Ba5 54. c6+ Ka7) 53. Rd6 {[%emt 0:04:01]} Bc7 {[%emt 0:01:02]} 54. Re6 {[%emt 0:01:22]} Ka7 {[%emt 0:01:24]} (54... Bg3 $142 55. d4 Rh7 56. c6+ Ka8 57. Re8+ Ka7) 55. Nxc7 {[%emt 0:01:34]} Rxc7 {[%emt 0:00:05]} 56. d4 {[%emt 0:00:01][%cal Bd3d4,Bd4d5,Bd5d6][%mdl 32]} Rh7 {[%emt 0:00:57]} 57. d5 {[%emt 0:00:39] White threatens d6 and mate.} Rh3+ {[%emt 0:04:55]} 58. Kc2 {[%emt 0:00:17]} Rh5 {[%emt 0:00:04]} 59. d6 {[%emt 0:00:57]} Rd5 {[%emt 0:00:44]} 60. c6 {[%emt 0:03:14] Weighted Error Value: White=0.20 (precise) /Black=0.44} 1-0

[Event "Stare Mesto Open-A 2022"]
[Site "Stare Mesto"]
[Date "2022.08.15"]
[Round "4.6"]
[White "Jasso, Matej"]
[Black "Kostka, Vit"]
[Result "0-1"]
[ECO "B40"]
[WhiteElo "1873"]
[BlackElo "2168"]
[Annotator "NA RC"]
[PlyCount "54"]
[EventDate "2022.08.12"]
[EventType "swiss"]
[EventCountry "CZE"]
[SourceTitle "playchess.com"]
[Source "ChessBase"]
[SourceQuality "1"]
[TimeControl "40/5400+30:1800+30"]

1. e4 {[%emt 0:00:07]} c5 {[%emt 0:00:21]} 2. Nf3 {[%emt 0:00:10]} e6 {[%emt 0:00:19]} 3. d4 {[%emt 0:00:11]} cxd4 {[%emt 0:00:12]} 4. Nxd4 {[%emt 0:00:08]} Nf6 {[%emt 0:00:18]} 5. Bd3 {[%emt 0:00:14]} Nc6 {[%emt 0:03:30]} 6. Nxc6 {[%emt 0:01:17]} bxc6 {[%emt 0:01:16]} 7. O-O {[%emt 0:00:47]} d5 {[%emt 0:01:27]} 8. Nc3 {[%emt 0:02:00]} Be7 {[%emt 0:01:37]} 9. Re1 {[%emt 0:01:49]} O-O {[%emt 0:11:56]} 10. Qf3 {[%emt 0:07:27]} d4 {[%emt 0:05:59]} 11. e5 {[%emt 0:09:58]} dxc3 {[%emt 0:05:18]} 12. exf6 {[%emt 0:01:10]} Bxf6 {[%emt 0:00:39]} 13. bxc3 {[%emt 0:03:56]} Qa5 {[%emt 0:05:10]} 14. Bd2 {[%emt 0:09:10]} Ba6 {[%emt 0:04:36]} 15. Qxc6 {[%emt 0:05:24]} Bxd3 {[%emt 0:00:59]} 16. cxd3 {[%emt 0:00:08]} Rac8 {[%emt 0:00:32]} 17. Qb7 {[%emt 0:06:33]} Bxc3 {[%emt 0:05:12]} 18. Bxc3 {[%emt 0:03:36]} Rxc3 {[%emt 0:01:19]} 19. Red1 {[%emt 0:01:57]} g6 {[%emt 0:12:57]} 20. Qb2 {[%emt 0:11:21]} Rd8 {[%emt 0:05:34]} 21. d4 {[%emt 0:03:09]} Rc4 {[%emt 0:04:23]} 22. Rd3 {[%emt 0:06:49]} Qa4 {[%emt 0:03:25]} 23. Rad1 {[%emt 0:07:29]} Rc2 {[%emt 0:05:23]} 24. Ra3 {[%emt 0:04:55]} Qc4 {[%emt 0:02:24]} 25. Qb1 {[%emt 0:05:43]} Qe2 {[%emt 0:04:59]} 26. Rf1 {[%emt 0:00:51]} Rb2 {[%emt 0:03:22]} 27. Re3 {[%emt 0:04:26]} Qxf2+ {[%emt 0:01:38]} 0-1

[Event "Stare Mesto Open-A 2022"]
[Site "Stare Mesto"]
[Date "2022.08.15"]
[Round "4.7"]
[White "Travnicek, Krystof Mikulas"]
[Black "Vrtal, Jaroslav"]
[Result "1/2-1/2"]
[ECO "E91"]
[WhiteElo "2138"]
[BlackElo "2000"]
[Annotator "NA RC"]
[PlyCount "50"]
[EventDate "2022.08.12"]
[EventType "swiss"]
[EventCountry "CZE"]
[SourceTitle "playchess.com"]
[Source "ChessBase"]
[SourceQuality "1"]
[TimeControl "40/5400+30:1800+30"]

1. c4 {[%emt 0:00:06]} Nf6 {[%emt 0:00:10]} 2. Nc3 {[%emt 0:00:15]} g6 {[%emt 0:00:07]} 3. e4 {[%emt 0:00:23]} d6 {[%emt 0:00:04]} 4. d4 {[%emt 0:00:13]} Bg7 {[%emt 0:00:05]} 5. Nf3 {[%emt 0:00:42]} O-O {[%emt 0:00:06]} 6. Be2 {[%emt 0:00:27]} Nbd7 {[%emt 0:00:16]} 7. O-O {[%emt 0:00:44]} c6 {[%emt 0:00:03]} 8. Be3 {[%emt 0:01:17]} e5 {[%emt 0:03:24]} 9. d5 {[%emt 0:01:21]} cxd5 {[%emt 0:00:26]} 10. cxd5 {[%emt 0:00:54]} Ng4 {[%emt 0:03:57]} 11. Bg5 {[%emt 0:05:31]} f6 {[%emt 0:00:26]} 12. Bd2 {[%emt 0:01:15]} Nh6 {[%emt 0:02:19]} 13. Qc2 {[%emt 0:09:07]} a6 {[%emt 0:01:55]} 14. b4 {[%emt 0:06:17]} Nb6 {[%emt 0:08:54]} 15. a4 {[%emt 0:07:30]} Bg4 {[%emt 0:00:47]} 16. Rfc1 {[%emt 0:16:25]} Rc8 {[%emt 0:06:39]} 17. Qa2 {[%emt 0:04:33]} Nf7 {[%emt 0:02:23]} 18. a5 {[%emt 0:02:22]} Nd7 {[%emt 0:00:14]} 19. Ne1 {[%emt 0:10:55]} Bxe2 {[%emt 0:01:22]} 20. Nxe2 {[%emt 0:00:02]} f5 {[%emt 0:02:20]} 21. Rxc8 {[%emt 0:02:16]} Qxc8 {[%emt 0:00:01]} 22. Rc1 {[%emt 0:00:23]} Qd8 {[%emt 0:00:41]} 23. Qc2 {[%emt 0:05:35]} fxe4 {[%emt 0:02:22]} 24. Ng3 {[%emt 0:02:39]} Nf6 {[%emt 0:00:46]} 25. Nxe4 {[%emt 0:03:25]} Nxd5 {[%emt 0:03:06]} 1/2-1/2

[Event "Stare Mesto Open-A 2022"]
[Site "Stare Mesto"]
[Date "2022.08.15"]
[Round "4.8"]
[White "Babula, Matej"]
[Black "Mojzis, Jaroslav"]
[Result "0-1"]
[ECO "C54"]
[WhiteElo "1748"]
[BlackElo "2108"]
[Annotator "NA RC"]
[PlyCount "72"]
[EventDate "2022.08.12"]
[EventType "swiss"]
[EventCountry "CZE"]
[SourceTitle "playchess.com"]
[Source "ChessBase"]
[SourceQuality "1"]
[TimeControl "40/5400+30:1800+30"]

1. e4 {[%emt 0:00:03]} e5 {[%emt 0:00:12]} 2. Nf3 {[%emt 0:00:06]} Nc6 {[%emt 0:00:08]} 3. Bc4 {[%emt 0:00:05]} Bc5 {[%emt 0:00:10]} 4. c3 {[%emt 0:00:09]} Nf6 {[%emt 0:00:09]} 5. d3 {[%emt 0:00:07]} O-O {[%emt 0:00:15]} 6. O-O {[%emt 0:00:15]} d5 {[%emt 0:00:18]} 7. exd5 {[%emt 0:00:26]} Nxd5 {[%emt 0:00:06]} 8. Re1 {[%emt 0:01:00]} Nb6 {[%emt 0:06:40]} 9. Nxe5 {[%emt 0:09:39]} Nxe5 {[%emt 0:01:12]} 10. Rxe5 {[%emt 0:01:25]} Bxf2+ {[%emt 0:00:40]} 11. Kxf2 {[%emt 0:15:15]} Qf6+ {[%emt 0:00:14]} 12. Qf3 {[%emt 0:00:44]} Qxe5 {[%emt 0:00:14]} 13. Bf4 $19 {[%emt 0:01:17]} Qc5+ {[%emt 0:05:00]} 14. Be3 {[%emt 0:00:59]} Qd6 {[%emt 0:00:48]} 15. Bf4 {[%emt 0:02:56]} Qg6 {[%emt 0:00:47]} 16. Bb3 {[%emt 0:04:49]} Bg4 {[%emt 0:11:22]} 17. Qg3 {[%emt 0:02:28]} c6 {[%emt 0:02:27]} 18. d4 {[%emt 0:03:33]} Nd5 {[%emt 0:05:13]} 19. Bxd5 {[%emt 0:04:23]} cxd5 {[%emt 0:00:19]} 20. Nd2 {[%emt 0:00:30]} Rfe8 {[%emt 0:01:57]} 21. h3 {[%emt 0:03:48]} Bf5 {[%emt 0:02:42]} 22. Qxg6 {[%emt 0:00:42]} Bxg6 {[%emt 0:00:35]} 23. Nf3 {[%emt 0:00:57]} f6 {[%emt 0:00:18]} 24. Re1 {[%emt 0:01:13]} Rxe1 {[%emt 0:00:07]} 25. Kxe1 {[%emt 0:00:09]} Be4 {[%emt 0:00:19]} 26. Kd2 {[%emt 0:01:00]} Bxf3 {[%emt 0:00:09]} 27. gxf3 {[%emt 0:00:02]} g5 {[%emt 0:00:18]} 28. Bg3 {[%emt 0:01:47]} Re8 {[%emt 0:01:43]} 29. b3 {[%emt 0:00:29]} b5 {[%emt 0:00:55]} 30. Kd3 {[%emt 0:01:11]} Kf7 {[%emt 0:02:47]} 31. Kd2 {[%emt 0:03:02]} Ke6 {[%emt 0:00:09]} 32. Kd3 {[%emt 0:00:09]} Rc8 {[%emt 0:00:26]} 33. a3 {[%emt 0:00:41]} Rc6 {[%emt 0:00:27]} 34. Kc2 {[%emt 0:00:48]} h5 {[%emt 0:00:57]} 35. Bf2 {[%emt 0:00:44]} Kf5 {[%emt 0:00:16]} 36. Be3 {[%emt 0:00:21]} g4 {[%emt 0:01:08]} 0-1

[Event "Stare Mesto Open-A 2022"]
[Site "Stare Mesto"]
[Date "2022.08.16"]
[Round "5.1"]
[White "Babula, Vlastimil"]
[Black "Neuman, Petr"]
[Result "1/2-1/2"]
[ECO "B12"]
[WhiteElo "2571"]
[BlackElo "2378"]
[Annotator "TA"]
[PlyCount "67"]
[EventDate "2022.08.12"]
[EventType "swiss"]
[EventCountry "CZE"]
[SourceTitle "playchess.com"]
[Source "ChessBase"]
[SourceQuality "1"]
[TimeControl "40/5400+30:1800+30"]

{[%evp 9,67,4,0,7,35,25,26,0,0,-8,0,0,0,0,12,0,31,37,120,117,123,74,118,76,78,79,99,83,83,88,77,83,74,51,50,30,108,108,108,86,94,108,100,102,183,148,182,180,170,168,165,161,160,160,134,91,93,0,122,0]} 1. e4 {[%emt 0:00:02]} c6 {[%emt 0:00:04]} 2. d4 {[%emt 0:00:16]} d5 {[%emt 0:00:04]} 3. e5 {[%emt 0:00:44]} Bf5 {[%emt 0:00:41]} 4. h4 {[%emt 0:00:17]} Qc7 {[%emt 0:00:25]} 5. g4 {[%emt 0:01:45]} Bd7 {[%emt 0:00:05]} 6. Nc3 {[%emt 0:00:49] B12: Caro-Kann: Advance Variation.} h5 {[%emt 0:04:51]} 7. gxh5 {[%emt 0:08:42]} e6 {[%emt 0:09:38]} 8. f4 {[%emt 0:07:19] [#] White has an edge.} c5 $146 {[%emt 0:02:48]} ({Predecessor:} 8... Nh6 9. Bh3 Nf5 10. Bxf5 exf5 11. Be3 Be7 12. Qf3 Be6 13. O-O-O Nd7 14. Nh3 O-O-O {1-0 (48) Babiy,O (2258)-Rakhmangulova,A (2215) Lutsk 2019}) 9. Nf3 {[%emt 0:01:15]} Nh6 {[%emt 0:04:35]} 10. Bh3 {[%emt 0:05:05]} Nc6 {[%emt 0:13:49]} 11. Be3 {[%emt 0:02:33]} Qb6 {[%emt 0:07:23]} 12. Qd2 {[%emt 0:05:54]} cxd4 {[%emt 0:02:05]} 13. Nxd4 {[%emt 0:01:04]} Nxd4 {[%emt 0:06:26]} ({Black should try} 13... Qxb2 $14 14. Rb1 Nxd4 15. Qxd4 (15. Rxb2 Nf3+ 16. Ke2 Nxd2 $11) (15. Bxd4 Qa3 $11) 15... Qxc2) 14. Bxd4 $16 {[%emt 0:00:10]} Qa5 {[%emt 0:00:44]} 15. Rg1 {[%emt 0:13:09]} (15. O-O-O $142) 15... O-O-O {[%emt 0:01:28]} 16. Ne4 {[%emt 0:06:00] White is more active.} Qxd2+ {[%emt 0:05:15]} 17. Nxd2 {[%emt 0:00:02][%cal Be4d2,Bd2f3,Bf3g5][%mdl 32]} b6 {[%emt 0:05:04]} 18. Nf3 {[%emt 0:01:25]} Nf5 {[%emt 0:03:44]} 19. Bxf5 {[%emt 0:00:13]} exf5 {[%emt 0:00:04]} 20. Rg5 {[%emt 0:05:21]} Rh7 {[%emt 0:01:57]} 21. O-O-O {[%emt 0:02:01]} Be7 {[%emt 0:00:47]} 22. Rg2 $36 {[%emt 0:00:16][%mdl 2048] White has the initiative.} Be6 {[%emt 0:00:29]} (22... Rg8 $1 $11 {remains equal.}) 23. Ng5 {[%emt 0:05:02]} Rxh5 {[%emt 0:09:44]} 24. Nxe6 {[%emt 0:00:07]} fxe6 {[%emt 0:00:05]} 25. Rxg7 {[%emt 0:00:06]} Rd7 {[%emt 0:12:22]} 26. Bf2 {[%emt 0:00:53]} Bxh4 {[%emt 0:01:42] [#]} (26... Bd8 $16 27. Rxd7 Kxd7) 27. Rxd7 $1 $18 {[%emt 0:00:51]} Kxd7 {[%emt 0:00:03]} 28. Rh1 {[%emt 0:01:01]} Bxf2 {[%emt 0:00:03]} 29. Rxh5 {[%emt 0:00:03] KR-KB} Be3+ {[%emt 0:00:04]} 30. Kd1 {[%emt 0:01:44] And now Rh7+ would win.} Bxf4 {[%emt 0:00:06]} 31. Rh7+ {[%emt 0:00:06]} Kd8 {[%emt 0:00:05]} 32. Rh8+ {[%emt 0:00:56]} Kd7 {[%emt 0:00:05]} 33. Rh7+ {[%emt 0:02:50]} Kd8 $1 {[%emt 0:00:03]} 34. Rh8+ {[%emt 0:00:12] Weighted Error Value: White=0.12 (very precise) /Black=0.14 (very precise)} (34. Rxa7 $16 Bxe5 35. b4) 1/2-1/2

[Event "Stare Mesto Open-A 2022"]
[Site "Stare Mesto"]
[Date "2022.08.16"]
[Round "5.2"]
[White "Haba, Petr"]
[Black "Husek, Martin"]
[Result "1-0"]
[ECO "E01"]
[WhiteElo "2453"]
[BlackElo "2132"]
[Annotator "TA"]
[PlyCount "114"]
[EventDate "2022.08.12"]
[EventType "swiss"]
[EventCountry "CZE"]
[SourceTitle "playchess.com"]
[Source "ChessBase"]
[SourceQuality "1"]
[TimeControl "40/5400+30:1800+30"]

{[%evp 17,114,8,3,13,15,10,50,43,54,52,39,32,30,43,37,39,25,20,20,23,32,16,36,26,114,86,84,82,104,104,101,98,112,94,116,97,100,103,112,93,111,81,175,152,151,149,275,270,268,268,246,-20,-20,-20,-20,-20,-20,-37,-20,-20,0,0,0,-22,-29,-56,0,0,0,0,0,0,0,0,0,0,0,0,0,0,6261,5725,5808,5185,5281,5204,5085,3235,1327,1125,29976,29977,29977,29978,29978,29979,29980,29981,29981]} 1. d4 {[%emt 0:00:08]} Nf6 {[%emt 0:00:53]} 2. c4 {[%emt 0:00:09]} e6 {[%emt 0:00:30]} 3. g3 {[%emt 0:00:11]} d5 {[%emt 0:00:34]} 4. Bg2 {[%emt 0:00:20]} Bb4+ {[%emt 0:00:20]} 5. Bd2 {[%emt 0:00:37]} Be7 {[%emt 0:00:15]} 6. Nf3 {[%emt 0:00:13]} c6 {[%emt 0:00:10]} 7. Qc2 {[%emt 0:00:33]} b6 {[%emt 0:00:23]} 8. b3 {[%emt 0:02:24]} Ba6 {[%emt 0:01:50]} 9. O-O {[%emt 0:02:01]} Nbd7 {[%emt 0:01:12]} 10. a4 $1 {[%emt 0:04:46][%cal Ba2a4,Ba4a5][%mdl 4] is now more promising than 10.Rd1. E15: Queen's Indian: 4 g3 sidelines, 4 g3 Ba6 and 4 g3 Bb7 early deviations.} O-O {[%emt 0:00:58]} 11. a5 {[%emt 0:02:43]} b5 {[%emt 0:34:43][%cal Rb5c4]} (11... c5 {feels hotter.} 12. Rc1 Re8 13. Ne5 Qc7) 12. c5 {[%emt 0:00:33] [#] White is slightly better.} b4 $146 {[%emt 0:01:32]} ({Predecessor:} 12... Ne4 13. Bb4 Qc7 14. Nfd2 f5 15. e3 e5 16. f3 Nxd2 17. Qxd2 exd4 18. exd4 f4 {0-1 (40) Elsness,F (2447)-Bogner,S (2610) London 2018}) 13. Bxb4 {[%emt 0:00:04]} Rb8 {[%emt 0:02:04]} 14. Be1 {[%emt 0:00:20]} Ne4 {[%emt 0:09:37]} 15. Nc3 {[%emt 0:06:37][%cal Bb1c3,Bc3a2,Ba2b4][%mdl 32]} f5 {[%emt 0:05:45]} 16. Na2 {[%emt 0:00:10]} Bf6 {[%emt 0:08:37]} 17. Nb4 {[%emt 0:09:55]} Bb5 {[%emt 0:00:13]} 18. Nd3 {[%emt 0:00:06]} Qc7 {[%emt 0:08:41]} 19. Rd1 {[%emt 0:06:40]} g5 {[%emt 0:03:00]} 20. Nfe5 {[%emt 0:16:12]} Bxd3 {[%emt 0:03:03]} (20... Bxe5 $11 {remains equal.} 21. dxe5 g4) 21. exd3 {[%emt 0:08:16]} Nexc5 {[%emt 0:00:09] [#]} 22. b4 {[%emt 0:00:16]} Bxe5 {[%emt 0:03:33]} 23. dxe5 {[%emt 0:00:05]} Na6 {[%emt 0:00:15]} 24. d4 {[%emt 0:00:19]} Nxb4 {[%emt 0:04:06]} 25. Bxb4 {[%emt 0:00:18]} Rxb4 {[%emt 0:00:05]} 26. Qd2 $1 {[%emt 0:00:04][%csl LRb4,LRg5]} Rbb8 {[%emt 0:02:30]} 27. Qxg5+ {[%emt 0:00:07]} Kh8 {[%emt 0:00:13]} 28. Rb1 {[%emt 0:05:37] aiming for Rxb8.} c5 {[%emt 0:02:21]} 29. Rxb8 {[%emt 0:03:09] White is more active.} Nxb8 {[%emt 0:00:05]} (29... Rxb8 $2 30. Qe7 $16) (29... Qxb8 $16 {might work better.} 30. dxc5 (30. Qe7 Qe8 $14) 30... Nxc5) 30. dxc5 $18 {[%emt 0:12:27]} (30. Qh6 Re8 $14) 30... Nc6 {[%emt 0:00:06][%cal Bb8c6,Bc6d4,Bd4e2][%mdl 32]} 31. a6 {[%emt 0:00:05]} Qxe5 {[%emt 0:03:03]} (31... Nb4 $16) 32. Rb1 {[%emt 0:01:29]} Rg8 {[%emt 0:04:28]} 33. Qh6 {[%emt 0:02:52]} Nd4 {[%emt 0:00:52]} 34. Rb7 $2 {[%emt 0:08:28]} ({White should play} 34. Qh5 $18) 34... Ne2+ $11 {[%emt 0:00:20]} (34... Rg7 $2 35. c6 Nxc6 36. Rxg7 Qxg7 37. Qxe6 $18) 35. Kf1 {[%emt 0:00:11][%csl Gh6][%cal Rb7h7,Bg1f1,Bf1e2,Be2e3,Be3d3][%mdl 32]} Qa1+ {[%emt 0:00:05]} 36. Kxe2 {[%emt 0:00:17][%csl Gh6][%cal Rb7h7] Chess con chili.} Qxa6+ {[%emt 0:00:04]} 37. Ke3 {[%emt 0:01:50][%csl Gh6][%cal Rb7h7]} Qxb7 $15 {[%emt 0:00:21][%mdl 4096] Endgame KQR-KQB} 38. Qf6+ {[%emt 0:00:02]} Rg7 {[%emt 0:00:41] White must now prevent ...Qe7.} 39. Qf8+ {[%emt 0:00:10]} Rg8 {[%emt 0:00:08]} 40. Qf6+ {[%emt 0:00:01]} Qg7 {[%emt 0:01:12]} 41. Qxe6 {[%emt 0:30:07]} f4+ {[%emt 0:13:19]} (41... Rd8 $15) 42. Kd3 $11 {[%emt 0:00:00]} fxg3 {[%emt 0:05:15]} 43. fxg3 {[%emt 0:00:00]} Qg6+ {[%emt 0:08:58]} 44. Qxg6 {[%emt 0:00:00]} hxg6 {[%emt 0:00:07] KR-KB} (44... Rxg6 45. Bxd5 h5 46. c6 $16) 45. Kd4 {[%emt 0:00:00]} Kg7 $1 {[%emt 0:02:52]} 46. c6 {[%emt 0:00:00]} ({But not} 46. Kxd5 Kf6 47. c6 Rd8+ 48. Kc5 Rd2 $17) 46... Kf6 $1 {[%emt 0:02:39] ...g5 is the strong threat.} 47. Bh3 $1 {[%emt 0:00:49]} Rg7 {[%emt 0:00:05] Hoping for ...Rh7.} 48. Kxd5 {[%emt 0:04:48] And now Kd6 would win.} a5 $2 {[%emt 0:00:03][%mdl 8192]} (48... Rh7 $11 49. Bg4 (49. Bd7 Ke7 $11) 49... a5) 49. Kd6 $18 {[%emt 0:00:08]} a4 {[%emt 0:01:00]} 50. Bd7 {[%emt 0:00:27] c7 would kill now.} ({Avoid the trap} 50. c7 $2 {[#]} Rxc7 $3 {[%mdl 512]} 51. Kxc7 a3 $19) 50... a3 {[%emt 0:01:38]} 51. c7 {[%emt 0:00:04]} Rg8 {[%emt 0:00:35]} 52. Be6 {[%emt 0:00:05]} Re8 {[%emt 0:00:19]} 53. Ba2 {[%emt 0:01:32] Intending Kd7 and mate.} Kf5 {[%emt 0:00:34]} 54. Kd7 {[%emt 0:00:14] White mates.} Ra8 {[%emt 0:00:25]} 55. c8=Q {[%emt 0:00:47]} Rxc8 {[%emt 0:00:03]} 56. Kxc8 {[%emt 0:00:05]} Kg4 {[%emt 0:00:06]} 57. Kd7 {[%emt 0:00:12]} g5 {[%emt 0:02:05] Weighted Error Value: White=0.13 (very precise) /Black=0.31} 1-0

[Event "Stare Mesto Open-A 2022"]
[Site "Stare Mesto"]
[Date "2022.08.16"]
[Round "5.3"]
[White "Kostka, Vit"]
[Black "Sramek, Vojtech"]
[Result "1/2-1/2"]
[ECO "C45"]
[WhiteElo "2168"]
[BlackElo "2249"]
[Annotator "TA"]
[PlyCount "36"]
[EventDate "2022.08.12"]
[EventType "swiss"]
[EventCountry "CZE"]
[SourceTitle "playchess.com"]
[Source "ChessBase"]
[SourceQuality "1"]
[TimeControl "40/5400+30:1800+30"]

{[%evp 19,20,4,43]} 1. e4 {[%emt 0:00:08] Adams,Michael} e5 {[%emt 0:00:35]} 2. Nf3 {[%emt 0:00:32]} Nc6 {[%emt 0:01:34]} 3. d4 {[%emt 0:02:16]} exd4 {[%emt 0:00:11]} 4. Nxd4 {[%emt 0:00:23]} Nf6 {[%emt 0:02:39]} 5. Nxc6 {[%emt 0:02:56]} bxc6 {[%emt 0:01:33]} 6. e5 {[%emt 0:01:24]} Qe7 {[%emt 0:00:26]} 7. Qe2 {[%emt 0:00:39]} Nd5 {[%emt 0:00:14]} 8. c4 {[%emt 0:01:10]} Ba6 {[%emt 0:02:35]} 9. b3 {[%emt 0:02:44]} O-O-O {[%emt 0:00:52]} 10. Bb2 {[%emt 0:03:13]} Qg5 {[%emt 0:02:52] [#]} {Predecessor:} 11. Qf3 $146 {C45: Scotch Game.} Bb4+ 12. Kd1 Nf4 13. h4 Qh6 14. g3 Ne6 15. Bc1 Qg6 16. h5 Qc2+ 17. Kxc2 Nd4+ 18. Kd3 Nxf3 {0-1 (28) Smeets,J (2593)-Adams,M (2735) London 2008 CBM 126 [Adams,Michael]} 1/2-1/2